bitfinex/quotes_SOLUSD_20241107
["timestamp","ask_amount","ask_price","bid_price","bid_amount"]
[1731002133931,15.66509463,195.65,195.59,51.01097509]
[1731002134132,15.66509463,195.62,195.59,7.23409109]
[1731002134344,15.66509463,195.61,195.59,7.23409109]
[1731002134525,15.66509463,195.61,195.54,7.23409109]
[1731002134719,21.8771,195.67,195.52,6.27652267]
[1731002134720,15.66509463,195.55,195.52,6.27652267]
[1731002135033,15.66509463,195.57,195.53,7.23409109]
[1731002135244,15.66509463,195.59,195.54,0.12549]
[1731002135411,15.66509463,195.59,195.54,7.35958109]
[1731002135616,15.66509463,195.58,195.54,7.35958109]
[1731002136334,15.66509463,195.57,195.54,7.35958109]
[1731002136639,15.66509463,195.58,195.54,7.35958109]
[1731002136817,15.66509463,195.57,195.54,7.35958109]
[1731002137018,15.66509463,195.57,195.54,7.23409109]
[1731002137235,15.66509463,195.56,195.54,7.23409109]
[1731002138119,15.66509463,195.57,195.54,7.23409109]
[1731002138315,15.66509463,195.6,195.55,0.12549]
[1731002138641,15.66509463,195.6,195.55,7.35958109]
[1731002138820,21.8771,195.67,195.56,31.01097509]
[1731002138821,15.66509463,195.62,195.56,31.01097509]
[1731002139332,15.66509463,195.64,195.57,26.88445384]
[1731002139521,15.66509463,195.64,195.58,7.23409109]
[1731002139717,15.66509463,195.63,195.58,7.23409109]
[1731002140540,15.66509463,195.65,195.59,23.776884]
[1731002140717,15.66509463,195.65,195.59,31.01097509]
[1731002141833,15.66509463,195.65,195.61,23.776884]
[1731002142337,15.31,195.85,195.61,23.776884]
[1731002142338,22.879,195.75,195.62,20.0]
[1731002142526,15.66509463,195.7,195.64,20.0]
[1731002143120,15.66509463,195.69,195.64,20.0]
[1731002143633,15.66509463,195.7,195.64,27.23409109]
[1731002144042,22.879,195.75,195.64,27.23409109]
[1731002144043,15.66509463,195.69,195.64,27.23409109]
[1731002144633,22.879,195.75,195.66,20.0]
[1731002144825,15.66509463,195.71,195.66,20.0]
[1731002145332,15.66509463,195.71,195.66,27.23409109]
[1731002145731,15.66509463,195.71,195.67,23.776884]
[1731002146338,15.66509463,195.73,195.68,20.0]
[1731002147235,15.66509463,195.72,195.68,20.0]
[1731002147953,15.66509463,195.69,195.64,6.88445384]
[1731002148130,22.879,195.75,195.65,0.12549]
[1731002148448,15.66509463,195.7,195.65,14.24403493]
[1731002148648,15.66509463,195.69,195.65,14.24403493]
[1731002148846,15.66509463,195.68,195.65,14.24403493]
[1731002149151,15.66509463,195.69,195.66,20.0]
[1731002149526,0.5628262,195.78,195.68,20.0]
[1731002149830,0.5628262,195.78,195.69,14.11854493]
[1731002150037,15.66509463,195.83,195.74,70.0]
[1731002150345,15.66509463,195.8,195.75,27.23409109]
[1731002150541,0.1,195.87,195.75,27.23409109]
[1731002150838,0.1,195.86,195.75,27.23409109]
[1731002151041,15.66509463,195.78,195.75,27.23409109]
[1731002151233,15.66509463,195.76,195.69,6.88445384]
[1731002151437,15.66509463,195.75,195.7,27.23409109]
[1731002151641,15.66509463,195.75,195.71,0.12549]
[1731002151838,22.5837,195.82,195.71,0.12549]
[1731002151839,15.66509463,195.76,195.71,0.12549]
[1731002152152,15.66509463,195.77,195.72,20.0]
[1731002152455,22.5837,195.82,195.72,27.23409109]
[1731002152624,15.66509463,195.77,195.73,7.23409109]
[1731002152943,22.5837,195.82,195.73,7.23409109]
[1731002152944,15.66509463,195.75,195.73,7.23409109]
[1731002153138,15.66509463,195.74,195.73,7.23409109]
[1731002153444,15.66509463,195.75,195.73,7.23409109]
[1731002153833,15.66509463,195.74,195.65,70.0]
[1731002154028,15.66509463,195.7,195.67,7.23409109]
[1731002154335,15.66509463,195.68,195.62,7.23409109]
[1731002154731,0.1,195.79,195.62,77.23409109]
[1731002154937,15.66509463,195.7,195.65,0.12549]
[1731002155144,15.76509463,195.8,195.66,20.0]
[1731002155145,15.66509463,195.68,195.66,20.0]
[1731002155327,15.66509463,195.69,195.66,20.0]
[1731002155532,15.66509463,195.69,195.66,27.23409109]
[1731002155836,15.66509463,195.7,195.67,0.12549]
[1731002156033,15.66509463,195.69,195.67,0.12549]
[1731002156242,15.66509463,195.69,195.66,27.23409109]
[1731002157047,15.66509463,195.69,195.67,0.12549]
[1731002157836,15.66509463,195.68,195.62,7.23409109]
[1731002158153,15.66509463,195.66,195.63,0.12549]
[1731002158647,15.66509463,195.65,195.63,0.12549]
[1731002159856,15.66509463,195.64,195.63,0.12549]
[1731002160153,15.66509463,195.7,195.63,0.12549]
[1731002160154,15.66509463,195.65,195.63,0.12549]
[1731002160528,15.66509463,195.66,195.63,7.35958109]
[1731002161434,15.66509463,195.69,195.64,7.23409109]
[1731002161644,15.66509463,195.66,195.64,7.23409109]
[1731002162441,15.66509463,195.67,195.65,0.12549]
[1731002162753,6.1885,195.71,195.56,20.634174]
[1731002162754,15.66509463,195.66,195.58,43.776884]
[1731002162954,15.66509463,195.64,195.61,20.0]
[1731002163136,15.66509463,195.63,195.6,7.23409109]
[1731002163451,15.66509463,195.7,195.61,0.12549]
[1731002163452,15.66509463,195.64,195.61,0.12549]
[1731002163750,15.66509463,195.64,195.6,7.23409109]
[1731002163943,15.66509463,195.62,195.6,7.23409109]
[1731002164144,15.66509463,195.64,195.61,0.12549]
[1731002164531,15.66509463,195.66,195.61,7.35958109]
[1731002164732,15.66509463,195.64,195.62,7.23409109]
[1731002164936,15.66509463,195.65,195.62,7.23409109]
[1731002165845,15.66509463,195.64,195.62,7.23409109]
[1731002166046,15.66509463,195.7,195.62,7.23409109]
[1731002166047,15.66509463,195.63,195.62,7.23409109]
[1731002166253,15.66509463,195.63,195.57,20.88792694]
[1731002166457,15.66509463,195.6,195.56,7.23409109]
[1731002166657,15.66509463,195.61,195.56,7.23409109]
[1731002166842,15.66509463,195.62,195.57,0.12549]
[1731002167145,15.66509463,195.66,195.58,7.23409109]
[1731002167360,15.66509463,195.66,195.59,0.12549]
[1731002167535,15.66509463,195.66,195.6,7.23409109]
[1731002167736,15.66509463,195.64,195.6,7.23409109]
[1731002167937,15.66509463,195.63,195.6,7.23409109]
[1731002168662,6.1885,195.71,195.61,20.12549]
[1731002168849,15.66509463,195.66,195.61,20.12549]
[1731002169752,15.66509463,195.65,195.61,20.12549]
[1731002171058,15.66509463,195.66,195.61,20.12549]
[1731002171566,15.66509463,195.68,195.61,27.35958109]
[1731002171737,15.66509463,195.68,195.63,20.0]
[1731002172153,15.66509463,195.74,195.65,20.0]
[1731002172345,15.66509463,195.73,195.67,20.0]
[1731002172549,15.66509463,195.73,195.67,27.23409109]
[1731002174069,15.66509463,195.74,195.67,27.23409109]
[1731002174551,15.66509463,195.74,195.68,7.23409109]
[1731002174750,15.66509463,195.74,195.69,20.0]
[1731002176553,15.66509463,195.75,195.69,20.0]
[1731002177268,15.66509463,195.72,195.69,20.0]
[1731002177766,15.66509463,195.72,195.64,23.776884]
[1731002177767,15.66509463,195.74,195.7,7.23409109]
[1731002177956,15.66509463,195.75,195.7,7.23409109]
[1731002178367,15.8922,195.81,195.7,7.23409109]
[1731002178368,15.66509463,195.77,195.71,20.12549]
[1731002178548,15.66509463,195.76,195.71,27.35958109]
[1731002178951,15.66509463,195.75,195.71,27.35958109]
[1731002179361,15.66509463,195.76,195.71,27.35958109]
[1731002180249,15.66509463,195.75,195.71,27.35958109]
[1731002180744,15.66509463,195.74,195.71,7.35958109]
[1731002181551,15.66509463,195.72,195.71,0.12549]
[1731002182467,15.66509463,195.72,195.67,7.23409109]
[1731002182769,15.66509463,195.7,195.68,0.12549]
[1731002183358,15.66509463,195.71,195.68,0.12549]
[1731002184368,15.66509463,195.71,195.68,20.12549]
[1731002184953,15.66509463,195.7,195.68,20.12549]
[1731002185473,15.66509463,195.72,195.68,20.12549]
[1731002186169,15.76509463,195.8,195.68,20.12549]
[1731002186170,15.66509463,195.73,195.68,20.12549]
[1731002186374,15.66509463,195.72,195.68,20.12549]
[1731002186553,15.66509463,195.73,195.68,20.12549]
[1731002187168,15.66509463,195.74,195.68,20.12549]
[1731002187664,15.66509463,195.75,195.68,20.12549]
[1731002187862,15.66509463,195.74,195.69,20.0]
[1731002188060,15.66509463,195.73,195.69,20.0]
[1731002188277,15.66509463,195.72,195.69,20.0]
[1731002188456,15.66509463,195.73,195.69,20.0]
[1731002189156,15.66509463,195.74,195.69,20.0]
[1731002189677,15.66509463,195.73,195.69,20.0]
[1731002191575,15.66509463,195.74,195.69,20.0]
[1731002192677,15.66509463,195.75,195.69,20.0]
[1731002192879,15.66509463,195.75,195.7,7.23409109]
[1731002193357,15.66509463,195.76,195.7,7.23409109]
[1731002193561,15.8922,195.81,195.7,7.23409109]
[1731002193562,15.8922,195.81,195.71,50.25301523]
[1731002193773,15.66509463,195.79,195.73,20.0]
[1731002194078,15.66509463,195.78,195.73,20.0]
[1731002194460,15.66509463,195.77,195.72,7.23409109]
[1731002194967,15.66509463,195.76,195.72,7.23409109]
[1731002195266,15.66509463,195.77,195.72,7.23409109]
[1731002196456,15.66509463,195.78,195.73,20.0]
[1731002196661,15.66509463,195.79,195.73,27.30409109]
[1731002197683,15.66509463,195.82,195.75,20.0]
[1731002197885,15.66509463,195.81,195.75,20.07]
[1731002198377,15.66509463,195.8,195.75,20.07]
[1731002198564,15.66509463,195.81,195.75,20.07]
[1731002198965,15.4186,195.89,195.75,20.07]
[1731002199171,15.66509463,195.82,195.75,20.07]
[1731002199371,15.66509463,195.82,195.75,27.30409109]
[1731002199884,15.66509463,195.8,195.77,20.0]
[1731002200085,15.66509463,195.8,195.77,20.07]
[1731002200380,15.66509463,195.8,195.77,0.07]
[1731002200762,15.66509463,195.79,195.77,0.07]
[1731002201466,15.66509463,195.81,195.77,0.07]
[1731002201671,15.66509463,195.8,195.77,0.07]
[1731002202074,15.66509463,195.81,195.77,0.07]
[1731002202466,15.66509463,195.82,195.77,0.07]
[1731002202782,15.66509463,195.83,195.77,0.07]
[1731002202985,15.66509463,195.82,195.77,0.07]
[1731002204978,15.66509463,195.83,195.77,0.07]
[1731002205880,15.66509463,195.84,195.78,20.0]
[1731002206270,15.66509463,195.84,195.79,23.776884]
[1731002206467,15.66509463,195.85,195.79,23.776884]
[1731002207480,15.66509463,195.84,195.79,23.776884]
[1731002207683,15.66509463,195.85,195.79,23.776884]
[1731002208070,15.4186,195.89,195.82,20.0]
[1731002208071,31.08369463,195.89,195.82,20.0]
[1731002208389,15.66509463,195.88,195.82,20.0]
[1731002208770,15.66509463,195.87,195.82,20.0]
[1731002209175,14.66509463,195.87,195.82,20.0]
[1731002209589,15.4186,195.89,195.82,20.0]
[1731002209590,15.66509463,195.88,195.82,20.0]
[1731002210869,0.6628262,195.97,195.82,20.0]
[1731002210870,0.5628262,195.97,195.84,20.0]
[1731002211069,15.66509463,195.94,195.86,20.0]
[1731002211265,15.66509463,195.93,195.86,27.23409109]
[1731002211869,15.66509463,195.92,195.86,27.23409109]
[1731002212388,15.66509463,195.95,195.88,20.0]
[1731002212592,0.5628262,195.97,195.88,20.0]
[1731002212593,15.66509463,195.94,195.88,20.0]
[1731002212797,15.66509463,195.95,195.87,20.0]
[1731002213094,15.66509463,195.93,195.87,34.57688898]
[1731002213268,0.5628262,195.97,195.87,34.57688898]
[1731002213269,0.5628262,195.97,195.87,104.57688898]
[1731002213470,15.66509463,195.94,195.87,34.57688898]
[1731002214271,0.5628262,195.97,195.89,70.0]
[1731002214488,0.5628262,195.97,195.91,70.0]
[1731002214876,16.22792083,195.97,195.9,14.57688898]
[1731002215278,0.5628262,195.97,195.9,14.57688898]
[1731002216281,15.66509463,195.91,195.79,70.0]
[1731002216469,15.66509463,195.89,195.82,70.0]
[1731002216669,15.3,195.95,195.86,70.0]
[1731002216876,0.5628262,195.97,195.91,70.0]
[1731002217083,0.5628262,195.97,195.91,77.23409109]
[1731002217396,0.5628262,195.97,195.92,0.12549]
[1731002217689,0.5628262,195.97,195.92,20.12549]
[1731002218185,0.5628262,195.97,195.92,0.12549]
[1731002219981,31.70572083,195.97,195.87,14.97928835]
[1731002220172,16.0406262,195.97,195.87,14.97928835]
[1731002220489,0.5628262,195.97,195.91,70.0]
[1731002221291,0.5628262,195.97,195.86,0.1]
[1731002221292,15.66509463,195.92,195.84,7.23409109]
[1731002221481,31.84849463,195.94,195.84,77.23409109]
[1731002221686,16.1834,195.94,195.84,77.23409109]
[1731002221896,0.5628262,195.97,195.86,70.0]
[1731002222186,16.22792083,195.97,195.87,7.23409109]
[1731002222687,0.5628262,195.97,195.88,20.0]
[1731002222897,16.22792083,195.97,195.88,20.0]
[1731002223104,15.66509463,195.95,195.87,14.39505903]
[1731002223390,15.66509463,195.95,195.87,7.16096794]
[1731002223977,0.5628262,195.97,195.88,0.12549]
[1731002224495,16.22792083,195.97,195.88,20.12549]
[1731002224687,15.66509463,195.96,195.88,20.12549]
[1731002225193,16.22792083,195.97,195.88,20.12549]
[1731002225381,0.5628262,195.97,195.88,20.12549]
[1731002225572,16.22792083,195.97,195.88,20.12549]
[1731002225775,15.66509463,195.96,195.88,20.12549]
[1731002226189,16.22792083,195.97,195.88,20.12549]
[1731002227092,15.66509463,195.96,195.88,20.12549]
[1731002227273,0.5628262,195.97,195.87,7.16096794]
[1731002227274,15.66509463,195.92,195.87,7.16096794]
[1731002227474,22.4337,195.95,195.84,7.23409109]
[1731002227475,15.66509463,195.94,195.84,77.23409109]
[1731002227798,15.66509463,195.94,195.88,43.265759]
[1731002228173,38.09879463,195.95,195.88,43.265759]
[1731002228600,15.66509463,195.96,195.88,43.265759]
[1731002228777,16.22792083,195.97,195.88,43.265759]
[1731002228980,0.5628262,195.97,195.89,20.0]
[1731002229304,0.5628262,195.97,195.91,20.0]
[1731002229487,0.5628262,195.97,195.92,70.0]
[1731002229705,0.5628262,195.97,195.93,20.0]
[1731002230175,0.5628262,195.97,195.96,70.0]
[1731002230376,0.5628262,195.97,195.96,90.0]
[1731002230999,0.5628262,195.97,195.95,20.0]
[1731002231193,0.5628262,195.97,195.96,0.12549]
[1731002232493,0.5628262,195.97,195.96,20.12549]
[1731002233395,0.5628262,195.97,195.96,27.28645794]
[1731002234896,0.5628262,195.97,195.96,20.12549]
[1731002235983,0.5628262,195.97,195.96,27.57534683]
[1731002236178,0.4374262,195.97,195.96,27.57534683]
[1731002236582,0.4374262,195.97,195.96,34.30004683]
[1731002236902,0.4374262,195.97,195.96,41.53413792]
[1731002237075,0.4374262,195.97,195.96,41.43413792]
[1731002237402,0.4374262,195.97,195.96,34.10004683]
[1731002237580,0.4374262,195.97,195.96,34.20004683]
[1731002237890,0.4374262,195.97,195.96,34.10004683]
[1731002238301,0.4374262,195.97,195.96,20.12549]
[1731002238491,0.3120262,195.97,195.96,20.12549]
[1731002238697,0.3120262,195.97,195.96,35.07666015]
[1731002240386,0.3120262,195.97,195.96,20.0]
[1731002240821,0.3120262,195.97,195.96,7.71707906]
[1731002240982,0.3120262,195.97,195.94,70.0]
[1731002241610,0.3120262,195.97,195.96,70.0]
[1731002241798,0.3120262,195.97,195.92,7.23409109]
[1731002242593,0.3120262,195.97,195.93,70.0]
[1731002243099,0.3120262,195.97,195.94,20.0]
[1731002243305,0.3120262,195.97,195.95,0.12549]
[1731002244306,0.3120262,195.97,195.92,14.95117015]
[1731002244485,0.3120262,195.97,195.92,7.71707906]
[1731002244685,15.90436805,195.97,195.92,7.71707906]
[1731002244892,0.3120262,195.97,195.89,7.23409109]
[1731002245098,0.3120262,195.97,195.9,0.12549]
[1731002245311,0.3120262,195.97,195.89,7.23409109]
[1731002245492,0.3120262,195.97,195.92,70.0]
[1731002245900,0.3120262,195.97,195.93,0.12549]
[1731002246894,0.3120262,195.97,195.9,7.23409109]
[1731002247093,0.3120262,195.97,195.91,70.0]
[1731002247293,0.3120262,195.97,195.92,0.12549]
[1731002247496,0.3120262,195.97,195.93,70.0]
[1731002247708,0.3120262,195.97,195.9,7.23409109]
[1731002247911,15.90436805,195.97,195.87,70.0]
[1731002248207,0.3120262,195.97,195.88,0.12549]
[1731002248593,0.3120262,195.97,195.88,7.35958109]
[1731002248816,39.68125205,195.97,195.88,7.35958109]
[1731002248996,39.68125205,195.97,195.84,70.0]
[1731002248997,39.36922585,195.95,195.84,70.0]
[1731002249194,6.3142,195.94,195.85,7.23409109]
[1731002249708,6.3142,195.94,195.86,0.12549]
[1731002249898,6.3142,195.94,195.87,7.23409109]
[1731002251298,15.7499,195.93,195.88,70.0]
[1731002251608,15.90436805,195.97,195.92,70.0]
[1731002251609,0.3120262,195.97,195.92,70.0]
[1731002251807,0.3120262,195.97,195.93,7.23409109]
[1731002252504,0.3120262,195.97,195.94,70.0]
[1731002253589,0.3120262,195.97,195.95,20.0]
[1731002254717,0.3120262,195.97,195.92,20.0]
[1731002255005,0.3120262,195.97,195.94,20.0]
[1731002255518,0.3120262,195.97,195.95,70.0]
[1731002255813,0.3120262,195.97,195.94,20.0]
[1731002256516,0.3120262,195.97,195.95,70.0]
[1731002256715,0.3120262,195.97,195.94,27.71594462]
[1731002257095,0.3120262,195.97,195.94,7.71594462]
[1731002259214,0.3120262,195.97,195.95,70.0]
[1731002259511,0.3120262,195.97,195.94,7.71594462]
[1731002260506,0.3120262,195.97,195.95,90.0]
[1731002262599,0.3120262,195.97,195.95,105.05003571]
[1731002263022,0.1866262,195.97,195.96,0.1]
[1731002264094,112.505974,196.0,195.99,70.0]
[1731002264419,112.505974,196.0,195.99,70.8865217]
[1731002265009,112.505974,196.0,195.99,0.8865217]
[1731002265321,112.505974,196.0,195.99,70.8865217]
[1731002266606,112.505974,196.0,195.99,0.8865217]
[1731002266805,112.505974,196.0,195.99,1.0120117]
[1731002269605,112.505974,196.0,195.99,0.12549]
[1731002270704,112.505974,196.0,195.95,7.71594462]
[1731002271604,112.505974,196.0,195.92,7.23409109]
[1731002271605,112.505974,196.0,195.93,70.0]
[1731002272109,112.505974,196.0,195.92,7.23409109]
[1731002272323,112.505974,196.0,195.93,0.12549]
[1731002272505,112.505974,196.0,195.93,70.12549]
[1731002272707,112.505974,196.0,195.93,7.35958109]
[1731002273104,112.505974,196.0,195.93,7.23409109]
[1731002273719,9.97601981,195.98,195.88,70.0]
[1731002273925,9.97601981,195.96,195.87,28.50205909]
[1731002274131,9.97601981,195.96,195.88,0.12549]
[1731002274304,23.776884,195.98,195.89,70.0]
[1731002274802,23.776884,195.98,195.87,21.267968]
[1731002274803,9.97601981,195.95,195.87,21.267968]
[1731002275122,6.5501,195.93,195.87,21.267968]
[1731002275324,6.5501,195.93,195.87,28.50205909]
[1731002275506,6.5501,195.93,195.88,0.12549]
[1731002275710,6.5501,195.93,195.88,7.35958109]
[1731002276402,22.35981674,195.98,195.88,7.35958109]
[1731002276609,25.96621981,195.99,195.88,77.35958109]
[1731002276808,15.9902,195.99,195.88,84.3049146]
[1731002277030,15.9902,195.99,195.89,6.94533351]
[1731002277206,15.9902,195.99,195.9,7.23409109]
[1731002278221,15.9902,195.99,195.9,77.23409109]
[1731002279129,15.9902,195.99,195.92,70.0]
[1731002279533,15.9902,195.99,195.9,7.23409109]
[1731002279710,14.7002214,195.99,195.9,77.23409109]
[1731002280115,14.7002214,195.99,195.92,70.0]
[1731002280616,112.505974,196.0,195.94,70.0]
[1731002281608,112.505974,196.0,195.94,0.07]
[1731002282821,128.492974,196.0,195.94,0.07]
[1731002283406,128.492974,196.0,195.91,70.0]
[1731002283928,128.492974,196.0,195.91,14.1794246]
[1731002284111,33.75290381,195.99,195.91,14.1794246]
[1731002284308,9.97601981,195.97,195.91,14.1794246]
[1731002284510,16.21711981,195.98,195.92,0.07]
[1731002284723,16.21711981,195.98,195.91,14.1794246]
[1731002285127,9.97601981,195.97,195.91,7.23409109]
[1731002285630,21.8449671,195.98,195.92,0.12549]
[1731002286023,15.6038671,195.95,195.91,7.23409109]
[1731002286228,15.6038671,195.96,195.87,28.21330151]
[1731002286537,15.6038671,195.97,195.87,28.21330151]
[1731002287413,15.6038671,195.97,195.88,0.12549]
[1731002287629,6.2411,195.98,195.88,0.12549]
[1731002287820,6.2411,195.98,195.89,6.94533351]
[1731002288010,21.8449671,195.98,195.89,6.94533351]
[1731002290508,15.6038671,195.97,195.89,6.94533351]
[1731002290709,15.6038671,195.96,195.89,6.94533351]
[1731002291018,15.6038671,195.97,195.89,6.94533351]
[1731002291610,15.6038671,195.95,195.88,0.12549]
[1731002292035,15.6038671,195.94,195.88,0.12549]
[1731002292310,15.6038671,195.92,195.87,21.267968]
[1731002292547,23.776884,195.95,195.87,21.267968]
[1731002292548,15.6038671,195.9,195.87,21.267968]
[1731002292716,15.6038671,195.89,195.87,21.267968]
[1731002292911,15.6038671,195.88,195.87,21.267968]
[1731002293412,15.6038671,195.88,195.76,70.0]
[1731002293613,15.6038671,195.85,195.76,70.0]
[1731002294040,15.6038671,195.84,195.74,76.44111199]
[1731002294334,15.6038671,195.81,195.71,2.36586231]
[1731002294543,15.6038671,195.81,195.7,76.38924688]
[1731002294831,21.8576671,195.8,195.7,6.38924688]
[1731002295011,6.2538,195.8,195.7,6.38924688]
[1731002295217,15.6038671,195.79,195.7,6.38924688]
[1731002295515,15.6038671,195.77,195.7,6.38924688]
[1731002295713,15.6038671,195.76,195.7,6.38924688]
[1731002295922,15.6038671,195.77,195.7,6.38924688]
[1731002296532,15.6038671,195.78,195.7,6.38924688]
[1731002296718,15.6038671,195.75,195.65,6.44111199]
[1731002296919,15.6038671,195.74,195.65,13.27354627]
[1731002297132,15.6038671,195.72,195.63,2.38220199]
[1731002297317,15.6038671,195.71,195.6,13.27354627]
[1731002297517,15.4655,195.73,195.6,13.27354627]
[1731002297518,15.6038671,195.7,195.6,13.27354627]
[1731002298138,15.6038671,195.69,195.6,6.44111199]
[1731002298837,6.6365,195.71,195.6,6.44111199]
[1731002299014,15.6038671,195.66,195.57,2.47017672]
[1731002299210,15.6038671,195.66,195.55,70.0]
[1731002300133,15.6038671,195.65,195.53,70.0]
[1731002300321,15.6038671,195.66,195.55,70.0]
[1731002300529,15.6038671,195.66,195.56,6.56660199]
[1731002300847,15.6038671,195.7,195.57,70.0]
[1731002301043,15.6038671,195.7,195.58,13.27354627]
[1731002301337,15.6038671,195.7,195.59,70.0]
[1731002301522,6.6365,195.71,195.61,70.0]
[1731002301719,6.6365,195.71,195.61,76.83243428]
[1731002301930,22.2403671,195.71,195.61,6.83243428]
[1731002302238,15.6038671,195.68,195.6,6.44111199]
[1731002302445,15.6038671,195.69,195.6,76.44111199]
[1731002302734,15.6038671,195.68,195.6,6.44111199]
[1731002302922,15.6038671,195.7,195.6,76.44111199]
[1731002303117,22.2403671,195.71,195.61,0.12549]
[1731002303438,15.6038671,195.68,195.61,0.12549]
[1731002303939,15.6038671,195.7,195.61,0.12549]
[1731002304818,6.6365,195.71,195.62,70.0]
[1731002305020,15.4655,195.73,195.64,70.0]
[1731002305227,15.4655,195.73,195.64,76.83243428]
[1731002305526,15.4655,195.73,195.65,6.83243428]
[1731002305729,6.3904,195.76,195.66,70.0]
[1731002306039,15.2117,195.78,195.69,70.0]
[1731002306222,6.3904,195.81,195.71,70.0]
[1731002306421,15.2117,195.83,195.75,70.0]
[1731002306745,15.2117,195.83,195.75,76.83243428]
[1731002306931,6.3904,195.86,195.76,6.83243428]
[1731002307442,15.2117,195.88,195.77,70.0]
[1731002307742,21.7021,195.95,195.79,70.0]
[1731002307925,21.6021,195.95,195.81,70.0]
[1731002308127,21.6021,195.95,195.83,70.0]
[1731002308317,21.6021,195.95,195.83,76.83243428]
[1731002308523,15.6038671,195.94,195.83,6.83243428]
[1731002309021,15.6038671,195.87,195.76,6.83243428]
[1731002309229,15.6038671,195.87,195.69,16.5705]
[1731002309230,15.6038671,195.86,195.73,70.0]
[1731002309522,24.99284662,195.87,195.73,70.0]
[1731002309721,24.99284662,195.87,195.74,0.12549]
[1731002310528,24.99284662,195.84,195.71,70.0]
[1731002310927,24.99284662,195.84,195.72,0.12549]
[1731002311441,24.99284662,195.86,195.74,70.0]
[1731002311640,24.99284662,195.86,195.75,20.0]
[1731002311941,24.99284662,195.85,195.75,20.0]
[1731002312240,24.99284662,195.83,195.7,70.0]
[1731002312629,24.99284662,195.84,195.7,70.0]
[1731002312826,24.99284662,195.83,195.7,70.0]
[1731002313234,24.99284662,195.82,195.68,70.0]
[1731002313439,24.99284662,195.82,195.7,70.0]
[1731002313623,31.18804662,195.83,195.7,70.0]
[1731002314031,24.99284662,195.82,195.71,0.12549]
[1731002314220,24.99284662,195.8,195.71,0.12549]
[1731002314425,24.99284662,195.79,195.71,0.12549]
[1731002314731,24.99284662,195.79,195.68,70.0]
[1731002315049,24.99284662,195.79,195.69,20.12549]
[1731002315234,24.99284662,195.8,195.69,20.12549]
[1731002315430,24.99284662,195.81,195.69,20.12549]
[1731002315628,24.99284662,195.8,195.69,0.12549]
[1731002315829,24.99284662,195.79,195.69,0.12549]
[1731002316227,24.99284662,195.78,195.64,70.0]
[1731002316428,24.99284662,195.78,195.67,70.0]
[1731002316838,24.99284662,195.78,195.68,0.12549]
[1731002317455,24.99284662,195.77,195.66,20.0]
[1731002317743,24.99284662,195.78,195.66,20.0]
[1731002317958,0.1,195.8,195.66,20.0]
[1731002317959,24.99284662,195.77,195.67,0.12549]
[1731002318136,24.99284662,195.77,195.65,6.15081449]
[1731002318530,24.99284662,195.79,195.66,70.0]
[1731002318746,23.776884,195.77,195.68,0.12549]
[1731002320346,48.76973062,195.77,195.68,0.12549]
[1731002320650,23.776884,195.75,195.65,20.0]
[1731002320858,23.776884,195.75,195.66,0.12549]
[1731002321048,23.776884,195.77,195.67,20.0]
[1731002322233,48.76973062,195.77,195.67,20.0]
[1731002322748,23.776884,195.78,195.67,20.0]
[1731002322955,48.76973062,195.78,195.67,20.0]
[1731002323654,6.2952,195.83,195.67,20.0]
[1731002323655,23.776884,195.76,195.67,20.0]
[1731002324938,48.76973062,195.76,195.67,20.0]
[1731002325456,48.76973062,195.76,195.68,0.12549]
[1731002325664,23.776884,195.76,195.68,0.12549]
[1731002325955,23.776884,195.77,195.68,0.12549]
[1731002326343,23.776884,195.77,195.69,20.0]
[1731002326551,24.99284662,195.8,195.69,20.0]
[1731002326749,23.776884,195.79,195.69,20.0]
[1731002326952,24.99284662,195.8,195.69,20.0]
[1731002327140,24.99284662,195.8,195.7,70.0]
[1731002327341,31.18804662,195.83,195.71,20.0]
[1731002327545,6.1952,195.83,195.75,20.0]
[1731002327748,24.99284662,195.86,195.75,20.0]
[1731002328058,24.99284662,195.88,195.77,20.0]
[1731002328255,24.99284662,195.86,195.77,20.0]
[1731002328855,22.9079,195.89,195.77,20.0]
[1731002328856,24.99284662,195.88,195.77,20.0]
[1731002329037,24.99284662,195.87,195.77,20.0]